bitfinex/quotes_SOLUSD_20220306
["timestamp","ask_amount","ask_price","bid_price","bid_amount"]
[1646598626591,3.17037098,85.543,85.47,14.08]
[1646598626791,3.17037098,85.539,85.47,14.08]
[1646598626993,17.5554,85.53,85.47,14.08]
[1646598627210,5.847,85.529,85.47,14.08]
[1646598627713,5.847,85.537,85.47,14.08]
[1646598627912,6.4002853,85.536,85.47,14.08]
[1646598628112,9.57065628,85.537,85.47,31.6334]
[1646598628310,3.17037098,85.536,85.47,31.6334]
[1646598628513,5.847,85.535,85.47,31.6334]
[1646598628711,6.4002853,85.534,85.47,31.6334]
[1646598629014,5.847,85.533,85.47,31.6334]
[1646598629211,6.4002853,85.532,85.471,23.0622]
[1646598629413,3.17037098,85.522,85.471,23.0622]
[1646598629616,3.17037098,85.522,85.48,17.5519]
[1646598629816,3.17037098,85.524,85.481,63.73757548]
[1646598630212,3.17037098,85.523,85.481,63.73757548]
[1646598631015,3.17037098,85.523,85.471,23.0622]
[1646598631215,9.01837098,85.522,85.471,23.0622]
[1646598631416,3.17037098,85.514,85.471,23.0622]
[1646598631618,3.17037098,85.511,85.471,23.0622]
[1646598632014,17.5597,85.51,85.471,23.0622]
[1646598632214,6.4002853,85.509,85.471,23.0622]
[1646598632415,9.57065628,85.509,85.471,23.0622]
[1646598632814,6.4002853,85.508,85.471,23.0622]
[1646598633217,9.57065628,85.509,85.471,23.0622]
[1646598633416,6.4002853,85.507,85.471,23.0622]
[1646598633619,3.17037098,85.508,85.471,23.0622]
[1646598633817,9.57065628,85.509,85.471,23.0622]
[1646598634222,3.17037098,85.501,85.471,23.0622]
[1646598634417,3.17037098,85.5,85.471,23.0622]
[1646598634619,17.5602,85.5,85.471,23.0622]
[1646598634918,6.4002853,85.499,85.461,23.6177]
[1646598635321,3.17037098,85.499,85.461,23.6177]
[1646598635520,3.17037098,85.499,85.462,59.18572591]
[1646598635719,3.17037098,85.498,85.462,59.18572591]
[1646598635921,3.17037098,85.499,85.462,59.18572591]
[1646598636119,3.17037098,85.5,85.462,59.18572591]
[1646598636521,3.17037098,85.501,85.462,59.18572591]
[1646598636921,3.17037098,85.505,85.462,59.18572591]
[1646598637120,3.17037098,85.502,85.462,59.18572591]
[1646598637320,3.17037098,85.503,85.463,23.5891]
[1646598638121,3.17037098,85.5,85.463,23.5891]
[1646598638718,3.17037098,85.502,85.463,23.5891]
[1646598638921,6.4002853,85.499,85.463,23.5891]
[1646598639121,3.17037098,85.502,85.463,23.5891]
[1646598639323,3.17037098,85.501,85.463,23.5891]
[1646598639520,3.17037098,85.502,85.463,23.5891]
[1646598639720,3.17037098,85.501,85.463,23.5891]
[1646598640122,3.17037098,85.502,85.463,23.5891]
[1646598640522,3.17037098,85.501,85.463,23.5891]
[1646598640721,9.57065628,85.501,85.463,23.5891]
[1646598641022,9.57065628,85.5,85.463,23.5891]
[1646598641220,3.17037098,85.5,85.463,23.5891]
[1646598641924,3.17037098,85.499,85.463,23.5891]
[1646598642926,3.17037098,85.498,85.463,23.5891]
[1646598643126,3.17037098,85.496,85.463,23.5891]
[1646598643526,3.17037098,85.501,85.463,23.5891]
[1646598644433,3.17037098,85.5,85.463,23.5891]
[1646598644828,3.17037098,85.501,85.463,23.5891]
[1646598645029,3.17037098,85.5,85.463,23.5891]
[1646598645730,3.17037098,85.499,85.463,23.5891]
[1646598645932,3.17037098,85.5,85.463,23.5891]
[1646598646133,3.17037098,85.499,85.463,23.5891]
[1646598646334,3.17037098,85.498,85.463,23.5891]
[1646598646535,3.17037098,85.497,85.463,23.5891]
[1646598647238,3.17037098,85.499,85.463,23.5891]
[1646598648238,3.17037098,85.497,85.463,23.5891]
[1646598649036,3.17037098,85.498,85.463,23.5891]
[1646598649237,6.4002853,85.496,85.463,23.5891]
[1646598649437,3.17037098,85.498,85.463,23.5891]
[1646598649640,3.17037098,85.497,85.463,23.5891]
[1646598650240,3.17037098,85.498,85.463,23.5891]
[1646598651438,3.17037098,85.501,85.463,23.5891]
[1646598652242,3.17037098,85.5,85.463,23.5891]
[1646598653040,9.57065628,85.499,85.463,23.5891]
[1646598653444,3.17037098,85.499,85.463,23.5891]
[1646598655342,3.17037098,85.499,85.461,23.6177]
[1646598655743,3.17037098,85.493,85.461,23.6177]
[1646598655944,3.17037098,85.492,85.461,23.6177]
[1646598656143,3.17037098,85.493,85.461,23.6177]
[1646598656343,3.17037098,85.492,85.461,23.6177]
[1646598657544,3.17037098,85.492,85.442,22.9116]
[1646598657746,3.17037098,85.488,85.442,22.9116]
[1646598657945,3.17037098,85.486,85.442,22.9116]
[1646598658146,3.17037098,85.487,85.442,69.91600615]
[1646598658347,3.17037098,85.488,85.442,69.91600615]
[1646598658648,3.17037098,85.491,85.442,69.91600615]
[1646598658944,3.17037098,85.492,85.442,69.91600615]
[1646598659144,3.17037098,85.491,85.442,69.91600615]
[1646598659344,3.17037098,85.491,85.442,22.9116]
[1646598659949,3.17037098,85.492,85.442,22.9116]
[1646598660147,6.4002853,85.49,85.442,22.9116]
[1646598660345,3.17037098,85.492,85.442,22.9116]
[1646598660545,6.4002853,85.489,85.442,82.83720548]
[1646598660745,3.17037098,85.492,85.442,82.83720548]
[1646598661245,3.17037098,85.491,85.442,82.83720548]
[1646598661448,9.57065628,85.491,85.442,82.83720548]
[1646598661648,3.17037098,85.491,85.442,82.83720548]
[1646598662048,3.17037098,85.491,85.45,17.559]
[1646598662453,3.17037098,85.492,85.45,17.559]
[1646598663851,3.17037098,85.493,85.45,17.559]
[1646598664051,3.17037098,85.5,85.45,17.559]
[1646598664251,3.17037098,85.503,85.45,17.559]
[1646598664653,3.17037098,85.501,85.45,17.559]
[1646598665754,3.17037098,85.502,85.45,17.559]
[1646598665958,3.17037098,85.497,85.45,17.559]
[1646598666155,3.17037098,85.496,85.45,17.559]
[1646598666453,3.17037098,85.495,85.45,17.559]
[1646598667058,3.17037098,85.494,85.45,17.559]
[1646598667255,3.17037098,85.497,85.45,17.559]
[1646598667454,3.17037098,85.496,85.45,17.559]
[1646598667957,3.17037098,85.497,85.45,17.559]
[1646598668156,3.17037098,85.498,85.45,17.559]
[1646598668375,3.17037098,85.499,85.45,17.559]
[1646598669476,9.57065628,85.498,85.45,17.559]
[1646598669877,3.17037098,85.498,85.45,17.559]
[1646598670077,6.4002853,85.497,85.45,17.559]
[1646598670379,6.4002853,85.496,85.45,17.559]
[1646598670578,3.17037098,85.498,85.45,17.559]
[1646598673079,3.17037098,85.499,85.45,17.559]
[1646598673282,1.59818921,85.475,85.45,17.559]
[1646598673480,1.59818921,85.474,85.45,17.559]
[1646598673881,1.59818921,85.475,85.45,17.559]
[1646598675984,1.59818921,85.476,85.45,17.559]
[1646598676388,1.59818921,85.475,85.45,17.559]
[1646598676584,1.59818921,85.474,85.45,17.559]
[1646598676783,1.59818921,85.475,85.45,17.559]
[1646598676984,1.59818921,85.476,85.45,17.559]
[1646598677886,6.4002853,85.509,85.45,17.559]
[1646598677887,1.59818921,85.475,85.45,17.559]
[1646598678084,1.59818921,85.476,85.45,17.559]
[1646598678287,1.59818921,85.475,85.45,17.559]
[1646598679387,1.59818921,85.476,85.45,17.559]
[1646598680189,1.59818921,85.475,85.45,17.559]
[1646598680392,1.59818921,85.476,85.45,17.559]
[1646598680590,1.59818921,85.475,85.45,17.559]
[1646598680791,1.59818921,85.476,85.45,17.559]
[1646598681491,1.59818921,85.477,85.45,17.559]
[1646598681691,1.59818921,85.478,85.45,34.429]
[1646598681890,1.59818921,85.48,85.45,34.429]
[1646598682090,1.59818921,85.481,85.45,34.429]
[1646598683992,3.17037098,85.505,85.451,167.80933173]
[1646598684193,3.17037098,85.53,85.461,117.3]
[1646598684393,17.2271,85.578,85.46,17.5473]
[1646598684394,3.17037098,85.549,85.471,117.3]
[1646598684591,4.68824254,85.573,85.471,117.3]
[1646598684592,3.17037098,85.552,85.471,117.3]
[1646598684993,2.71377251,85.551,85.471,117.3]
[1646598685191,3.17037098,85.545,85.473,117.3]
[1646598685693,9.01737098,85.544,85.481,52.00866947]
[1646598685994,6.39772164,85.543,85.49,16.87]
[1646598686191,3.17037098,85.546,85.491,23.865]
[1646598686393,3.17037098,85.547,85.491,23.865]
[1646598686591,3.17037098,85.546,85.491,23.865]
[1646598686891,3.17037098,85.548,85.491,23.865]
[1646598687292,3.17037098,85.546,85.491,23.865]
[1646598687494,6.39772164,85.549,85.491,23.865]
[1646598688094,6.39772164,85.549,85.5,17.5489]
[1646598688293,6.39772164,85.549,85.501,49.02619049]
[1646598688993,5.846,85.548,85.501,49.02619049]
[1646598689194,9.01637098,85.548,85.5,17.5489]
[1646598689394,6.39772164,85.547,85.5,17.5489]
[1646598689594,5.846,85.546,85.5,17.5489]
[1646598689995,6.39772164,85.545,85.5,17.5489]
[1646598690197,6.39772164,85.545,85.501,53.03388538]
[1646598690397,6.39772164,85.546,85.501,53.03388538]
[1646598690595,5.846,85.545,85.501,53.03388538]
[1646598690797,6.39772164,85.544,85.501,53.03388538]
[1646598691200,6.39772164,85.547,85.501,53.03388538]
[1646598691398,5.846,85.546,85.501,53.03388538]
[1646598691796,6.39772164,85.545,85.501,53.03388538]
[1646598692196,3.17037098,85.551,85.501,53.03388538]
[1646598692799,17.5496,85.55,85.501,53.03388538]
[1646598693000,6.39772164,85.549,85.501,53.03388538]
[1646598694202,17.5516,85.54,85.491,23.865]
[1646598694703,6.39898277,85.539,85.491,23.865]
[1646598694901,9.01637098,85.538,85.491,23.865]
[1646598695101,6.39898277,85.537,85.491,23.865]
[1646598695301,5.846,85.536,85.491,23.865]
[1646598695702,17.5541,85.53,85.491,23.865]
[1646598695902,5.847,85.529,85.491,23.865]
[1646598697603,5.847,85.529,85.492,63.76168801]
[1646598698002,5.847,85.537,85.492,63.76168801]
[1646598698202,6.39936932,85.536,85.492,63.76168801]
[1646598698406,5.846,85.535,85.492,63.76168801]
[1646598698704,6.39936932,85.534,85.492,63.76168801]
[1646598698906,5.847,85.533,85.492,63.76168801]
[1646598699103,6.39936932,85.532,85.492,63.76168801]
[1646598699304,5.847,85.531,85.492,63.76168801]
[1646598699504,5.847,85.531,85.491,23.865]
[1646598699802,23.95302305,85.53,85.491,23.815]
[1646598700009,17.5537,85.53,85.491,23.815]
[1646598700408,6.39940778,85.529,85.491,23.815]
[1646598701108,6.39940778,85.534,85.491,23.815]
[1646598701509,9.56977876,85.538,85.491,23.815]
[1646598702406,3.17037098,85.536,85.491,23.815]
[1646598702807,3.17037098,85.537,85.491,23.815]
[1646598703008,3.17037098,85.536,85.491,23.815]
[1646598704306,3.17037098,85.535,85.491,23.815]
[1646598704711,6.39940778,85.536,85.5,17.5491]
[1646598704910,3.17037098,85.55,85.501,45.74068384]
[1646598705110,3.17037098,85.554,85.502,23.4941]
[1646598705310,3.17037098,85.556,85.502,23.4941]
[1646598705916,3.17037098,85.555,85.502,23.4941]
[1646598706116,3.17037098,85.556,85.502,23.4941]
[1646598706315,6.3978954,85.554,85.502,23.4941]
[1646598706517,3.17037098,85.555,85.51,17.5463]
[1646598706720,3.17037098,85.556,85.51,17.5463]
[1646598707720,6.3978954,85.569,85.51,17.5463]
[1646598708122,5.845,85.568,85.51,17.5463]
[1646598708521,6.3978954,85.567,85.51,17.5463]
[1646598708920,6.3978954,85.568,85.51,17.5463]
[1646598709122,5.845,85.567,85.51,17.5463]
[1646598709326,6.3978954,85.566,85.51,17.5463]
[1646598709748,6.3978954,85.568,85.51,17.5463]
[1646598709950,5.845,85.567,85.51,17.5463]
[1646598710150,6.3978954,85.566,85.51,17.5463]
[1646598710550,6.3978954,85.568,85.51,17.5463]
[1646598710754,5.845,85.567,85.51,17.5463]
[1646598711151,6.3978954,85.566,85.51,17.5463]
[1646598711855,5.845,85.569,85.51,17.5463]
[1646598711856,6.3978954,85.565,85.51,17.5463]
[1646598712056,6.3978954,85.568,85.51,17.5463]
[1646598713754,6.3978954,85.568,85.511,117.3]
[1646598713955,6.3978954,85.568,85.521,117.3]
[1646598714154,5.845,85.577,85.523,117.3]
[1646598714155,6.3978954,85.576,85.523,117.3]
[1646598714359,6.3978954,85.567,85.523,117.3]
[1646598714555,6.3978954,85.575,85.523,117.3]
[1646598714755,5.844,85.589,85.523,117.3]
[1646598714956,6.39609399,85.588,85.53,17.5393]
[1646598715155,5.843,85.587,85.53,17.5393]
[1646598715356,6.39609399,85.586,85.53,17.5393]
[1646598715756,6.39609399,85.588,85.53,17.5393]
[1646598716359,6.39609399,85.587,85.53,17.5393]
[1646598716760,6.39609399,85.596,85.53,17.5393]
[1646598716962,6.39609399,85.586,85.53,17.5393]
[1646598717163,6.39609399,85.594,85.531,117.3]
[1646598717359,5.843,85.593,85.54,17.5393]
[1646598717562,6.39609399,85.592,85.541,59.53780572]
[1646598717760,6.39609399,85.594,85.541,59.53780572]
[1646598717961,6.39609399,85.596,85.541,59.53780572]
[1646598718262,5.843,85.595,85.541,59.53780572]
[1646598718562,6.39609399,85.594,85.541,59.53780572]
[1646598718763,5.843,85.593,85.541,59.53780572]
[1646598718962,6.39609399,85.592,85.541,59.53780572]
[1646598719162,6.39609399,85.592,85.55,17.5386]
[1646598719361,6.39609399,85.596,85.55,17.5386]
[1646598719564,5.841,85.595,85.55,17.5386]
[1646598719762,6.39609399,85.594,85.55,17.5386]
[1646598719967,5.843,85.593,85.55,17.5386]
[1646598720162,6.39609399,85.592,85.55,17.5386]
[1646598720363,6.39609399,85.592,85.54,17.5403]
[1646598720563,17.5415,85.59,85.532,24.4613]
[1646598720991,6.39609399,85.589,85.532,24.4613]
[1646598721585,5.843,85.588,85.532,24.4613]
[1646598721785,6.39609399,85.587,85.532,24.4613]
[1646598721985,5.843,85.586,85.532,24.4613]
[1646598722287,6.39609399,85.585,85.532,24.4613]
[1646598722885,6.39609399,85.588,85.532,24.4613]
[1646598723085,5.843,85.587,85.532,24.4613]
[1646598723285,5.843,85.587,85.54,17.5404]
[1646598723487,6.39609399,85.586,85.54,17.5404]
[1646598723888,6.39609399,85.588,85.54,17.5404]
[1646598724087,6.39609399,85.589,85.54,17.5404]
[1646598725490,5.843,85.588,85.533,5.843]
[1646598726090,6.39609399,85.587,85.533,5.843]
[1646598726291,5.843,85.586,85.533,5.843]
[1646598726692,6.39609399,85.585,85.533,5.843]
[1646598726891,5.843,85.584,85.533,5.843]
[1646598727093,6.39609399,85.583,85.533,5.843]
[1646598727292,5.843,85.582,85.533,5.843]
[1646598727493,6.39609399,85.581,85.533,5.843]
[1646598727693,5.844,85.58,85.533,5.843]
[1646598727896,6.39609399,85.579,85.533,5.843]
[1646598728293,6.39609399,85.578,85.533,5.843]
[1646598728493,6.39609399,85.588,85.533,5.843]
[1646598728693,5.843,85.587,85.533,5.843]
[1646598729092,6.39609399,85.586,85.533,5.843]
[1646598729293,5.843,85.585,85.533,5.843]
[1646598729494,6.39609399,85.584,85.533,5.843]
[1646598729695,6.39609399,85.589,85.533,5.843]
[1646598730296,6.39609399,85.589,85.54,17.5397]
[1646598730598,6.39609399,85.597,85.541,53.6082188]
[1646598730797,6.39609399,85.588,85.542,23.9388]
[1646598730996,6.39609399,85.595,85.542,23.9388]
[1646598731197,6.39609399,85.601,85.542,23.9388]
[1646598731397,5.843,85.6,85.542,23.9388]
[1646598731597,6.39609399,85.599,85.542,23.9388]
[1646598731997,6.39609399,85.601,85.542,23.9388]
[1646598732198,17.5391,85.6,85.542,23.9388]
[1646598732398,6.39609399,85.599,85.542,23.9388]
[1646598735706,5.843,85.598,85.542,23.9388]
[1646598735902,6.39609399,85.597,85.542,23.9388]
[1646598736103,5.843,85.596,85.542,23.9388]
[1646598736304,6.39609399,85.595,85.542,23.9388]
[1646598736504,5.843,85.594,85.542,23.9388]
[1646598736705,6.39609399,85.593,85.542,23.9388]
[1646598737204,6.39609399,85.598,85.542,23.9388]
[1646598737404,5.843,85.597,85.542,23.9388]
[1646598737605,6.39609399,85.596,85.542,23.9388]
[1646598737804,5.843,85.595,85.542,23.9388]
[1646598738206,6.39609399,85.594,85.542,23.9388]
[1646598738405,5.843,85.593,85.542,23.9388]
[1646598738804,6.39609399,85.592,85.542,23.9388]
[1646598739004,5.843,85.591,85.542,23.9388]
[1646598739304,6.39609399,85.59,85.542,23.9388]
[1646598739705,6.39609399,85.598,85.542,23.9388]
[1646598739906,5.843,85.597,85.542,23.9388]
[1646598740306,6.39609399,85.596,85.542,23.9388]
[1646598740506,5.843,85.595,85.542,23.9388]
[1646598740710,6.39609399,85.594,85.542,23.9388]
[1646598740906,5.843,85.593,85.542,23.9388]
[1646598741107,6.39609399,85.592,85.542,23.9388]
[1646598741307,5.843,85.591,85.542,23.9388]
[1646598741507,6.39609399,85.59,85.542,23.9388]
[1646598741906,5.843,85.596,85.542,23.9388]
[1646598742109,6.39609399,85.595,85.542,23.9388]
[1646598742307,5.843,85.594,85.55,17.5375]
[1646598742708,6.39609399,85.593,85.55,17.5375]
[1646598742907,6.39609399,85.593,85.542,23.9388]
[1646598743311,17.5408,85.6,85.542,23.9388]
[1646598743509,12.23909399,85.599,85.542,23.9388]
[1646598743710,6.39609399,85.598,85.542,23.9388]
[1646598744009,5.843,85.597,85.542,23.9388]
[1646598744409,6.39609399,85.596,85.542,23.9388]
[1646598744908,6.39609399,85.598,85.542,23.9388]
[1646598745108,6.39609399,85.595,85.542,23.9388]
[1646598745309,6.39609399,85.597,85.542,23.9388]
[1646598745510,6.39609399,85.598,85.542,23.9388]
[1646598745708,5.843,85.597,85.542,23.9388]
[1646598745913,6.39609399,85.596,85.542,23.9388]
[1646598746209,5.843,85.595,85.542,23.9388]
[1646598746609,6.39609399,85.594,85.542,23.9388]
[1646598746810,5.843,85.593,85.55,17.5383]
[1646598747012,6.39609399,85.592,85.55,17.5383]
[1646598747211,5.843,85.591,85.55,17.5383]
[1646598747413,6.39609399,85.59,85.55,17.5383]
[1646598748111,6.39609399,85.598,85.55,17.5383]
[1646598748311,6.39609399,85.589,85.55,17.5383]
[1646598748514,6.39609399,85.597,85.55,17.5383]
[1646598748713,5.841,85.596,85.55,17.5383]
[1646598748913,6.39609399,85.595,85.55,34.4083]
[1646598749113,6.39609399,85.599,85.56,17.5345]
[1646598749313,6.39609399,85.618,85.562,63.885183]
[1646598749512,5.841,85.617,85.562,63.885183]
[1646598749811,6.39609399,85.616,85.562,63.885183]
[1646598750012,5.841,85.615,85.562,63.885183]
[1646598750212,6.39609399,85.614,85.562,63.885183]
[1646598750419,6.39609399,85.614,85.57,17.5338]
[1646598750615,4.68824254,85.619,85.57,17.5338]
[1646598750815,10.52924254,85.619,85.57,17.5338]
[1646598751017,6.39609399,85.618,85.57,17.5338]
[1646598751217,6.39609399,85.618,85.571,22.88]
[1646598751418,4.68824254,85.619,85.571,22.88]
[1646598751618,10.52924254,85.619,85.571,22.88]
[1646598751816,4.68824254,85.619,85.571,22.88]
[1646598752015,6.39609399,85.618,85.571,22.88]
[1646598752216,11.08433653,85.619,85.571,22.88]
[1646598752415,6.39609399,85.617,85.571,22.88]
[1646598752616,6.39609399,85.619,85.571,22.88]
[1646598753619,5.841,85.618,85.571,22.88]
[1646598754016,6.39609399,85.617,85.571,22.88]
[1646598754218,5.841,85.616,85.571,22.88]
[1646598754616,6.39609399,85.615,85.571,22.88]
[1646598754815,5.841,85.614,85.571,22.88]
[1646598755016,6.39609399,85.613,85.571,22.88]
[1646598755221,5.841,85.612,85.571,22.88]
[1646598755421,6.39609399,85.611,85.571,22.88]
[1646598755919,6.39609399,85.618,85.571,22.88]
[1646598756122,6.39609399,85.61,85.571,22.88]
[1646598756319,6.39609399,85.617,85.571,22.88]
[1646598756519,6.39609399,85.609,85.571,22.88]
[1646598756720,6.39609399,85.619,85.571,22.88]
[1646598760026,5.841,85.618,85.571,22.88]
[1646598760227,6.39609399,85.617,85.571,22.88]
[1646598760627,6.39609399,85.618,85.571,22.88]
[1646598760828,5.841,85.617,85.571,22.88]
[1646598761028,6.39609399,85.616,85.571,22.88]
[1646598761428,6.39609399,85.62,85.571,22.88]
[1646598761627,5.841,85.619,85.571,22.88]
[1646598761830,6.39609399,85.618,85.571,22.88]
[1646598762029,5.841,85.617,85.571,22.88]
[1646598762248,6.39609399,85.616,85.571,22.88]
[1646598762848,23.93109399,85.62,85.571,22.88]
[1646598763048,6.39609399,85.615,85.571,22.88]
[1646598763249,12.23709399,85.619,85.571,22.88]
[1646598763449,6.39609399,85.618,85.571,22.88]
[1646598763652,5.841,85.617,85.571,22.88]
[1646598763852,6.39609399,85.616,85.571,22.88]
[1646598764249,6.39609399,85.618,85.571,22.88]
[1646598764449,5.841,85.617,85.571,22.88]
[1646598764651,6.39609399,85.616,85.571,22.88]
[1646598765049,6.39609399,85.62,85.571,22.88]
[1646598765249,5.841,85.619,85.571,22.88]
[1646598765649,6.39609399,85.618,85.571,22.88]
[1646598766250,6.39609399,85.62,85.571,22.88]
[1646598767051,5.841,85.619,85.571,22.88]
[1646598767251,6.39609399,85.618,85.571,22.88]
[1646598767649,6.39609399,85.62,85.571,22.88]
[1646598767851,5.841,85.619,85.571,22.88]
[1646598768051,6.39609399,85.618,85.571,22.88]
[1646598768452,6.39609399,85.62,85.571,22.88]
[1646598768655,5.841,85.619,85.571,22.88]
[1646598769055,6.39609399,85.618,85.571,22.88]
[1646598769452,5.841,85.617,85.571,22.88]
[1646598769653,5.841,85.619,85.58,17.5318]
[1646598769853,6.39609399,85.618,85.58,17.5318]
[1646598770051,17.6234,85.629,85.581,24.718]
[1646598770052,6.39609399,85.628,85.581,24.718]
[1646598773655,6.39609399,85.628,85.582,117.3]
[1646598774257,6.39609399,85.628,85.59,17.5298]
[1646598774457,6.39609399,85.628,85.591,64.55843595]
[1646598775359,6.39609399,85.628,85.59,17.5298]
[1646598775561,6.39609399,85.628,85.581,24.718]
[1646598775759,17.5351,85.62,85.581,24.718]
[1646598776059,6.39609399,85.619,85.581,24.718]
[1646598776563,6.39609399,85.627,85.581,24.718]
[1646598776761,6.39609399,85.626,85.581,24.718]
[1646598776965,6.39609399,85.627,85.581,24.718]
[1646598779363,6.39609399,85.627,85.582,117.3]
[1646598779563,6.39609399,85.627,85.591,117.3]
[1646598779764,17.8509,85.631,85.591,117.3]
[1646598779964,5.84,85.653,85.591,117.3]
[1646598780167,6.39609399,85.63,85.592,23.5866]
[1646598780364,5.84,85.653,85.592,23.5866]
[1646598780365,6.39609399,85.652,85.592,140.8866]
[1646598780564,5.839,85.651,85.601,117.3]
[1646598780766,6.39111313,85.65,85.602,140.8866]
[1646598780964,4.68824254,85.663,85.602,140.8866]
[1646598780965,5.839,85.649,85.602,140.8866]
[1646598781171,6.39111313,85.648,85.602,140.8866]
[1646598781365,6.39111313,85.656,85.602,140.8866]
[1646598781566,6.39111313,85.658,85.61,17.5254]
[1646598781775,5.838,85.657,85.61,17.5254]
[1646598781969,6.39111313,85.656,85.61,17.5254]
[1646598782167,5.838,85.655,85.61,17.5254]
[1646598782367,6.39111313,85.654,85.61,17.5254]
[1646598782568,5.838,85.653,85.61,17.5254]
[1646598782968,6.39111313,85.652,85.61,17.5254]
[1646598783169,5.839,85.651,85.61,17.5254]
[1646598783372,6.39111313,85.65,85.61,17.5254]
[1646598783771,17.527,85.66,85.602,140.8866]
[1646598783971,12.23011313,85.659,85.602,140.8866]
[1646598784171,6.39111313,85.658,85.602,140.8866]
[1646598784374,5.839,85.657,85.602,140.8866]
[1646598784572,6.39111313,85.656,85.602,140.8866]
[1646598784974,6.39111313,85.659,85.602,140.8866]
[1646598785779,6.39111313,85.659,85.61,17.5252]
[1646598785985,6.39111313,85.665,85.61,17.5252]
[1646598786178,6.39111313,85.665,85.602,140.8866]
[1646598786982,0.28515438,85.659,85.602,23.5866]
[1646598787179,6.39111313,85.658,85.602,23.5866]
[1646598787380,5.839,85.657,85.602,23.5866]
[1646598787580,23.75534741,85.658,85.602,23.5866]
[1646598787780,35.98546054,85.657,85.602,23.5866]
[1646598787981,17.5324,85.65,85.602,23.5866]
[1646598788180,12.23011313,85.649,85.602,23.5866]
[1646598788403,6.39111313,85.648,85.602,23.5866]
[1646598788604,5.839,85.647,85.602,23.5866]
[1646598788803,6.39111313,85.646,85.602,23.5866]
[1646598789004,5.839,85.645,85.602,23.5866]
[1646598789206,6.39111313,85.644,85.602,23.5866]
[1646598789408,6.39111313,85.644,85.53,210.82]
[1646598789409,17.5309,85.64,85.53,210.82]
[1646598789614,123.60074726,85.639,85.54,16.87]
[1646598789805,123.60074726,85.639,85.51,210.82]
[1646598789806,129.99186039,85.639,85.51,269.289]
[1646598790007,0.51432477,85.637,85.53,16.87]
[1646598790207,0.51432477,85.635,85.547,63.48638501]
[1646598790506,117.81432477,85.629,85.53,34.4106]
[1646598790709,0.51432477,85.629,85.531,23.8574]
[1646598790907,0.51432477,85.627,85.531,23.8574]
[1646598791308,0.51432477,85.625,85.531,23.8574]
[1646598791509,6.39111313,85.624,85.532,47.01221182]
[1646598791708,25.40201408,85.627,85.532,47.01221182]
[1646598791709,5.841,85.623,85.532,164.31221182]
[1646598791910,6.39111313,85.622,85.532,164.31221182]
[1646598792113,17.5385,85.61,85.54,17.5385]
[1646598792312,6.39111313,85.609,85.54,34.4085]
[1646598792510,6.39111313,85.609,85.541,23.6632]
[1646598793111,6.39111313,85.625,85.541,23.6632]
[1646598793311,17.5391,85.6,85.541,23.6632]
[1646598793711,5.843,85.599,85.541,23.6632]
[1646598797317,5.843,85.599,85.542,117.3]
[1646598797715,5.843,85.599,85.55,17.5372]
[1646598797916,5.841,85.604,85.551,22.8468]
[1646598798116,17.2875,85.605,85.551,22.8468]
[1646598798518,17.5372,85.61,85.551,22.8468]
[1646598798819,3.18452255,85.618,85.551,22.8468]
[1646598799016,3.18452255,85.618,85.561,117.3]
[1646598799017,5.841,85.617,85.561,117.3]
[1646598799217,5.841,85.623,85.563,117.3]
[1646598799417,21.84764254,85.649,85.562,63.36813277]
[1646598799418,6.39208793,85.622,85.565,117.3]
[1646598799619,5.841,85.636,85.565,117.3]
[1646598799620,3.18452255,85.633,85.565,117.3]
[1646598800221,6.39208793,85.632,85.571,117.3]
[1646598800416,3.18452255,85.635,85.571,117.3]
[1646598800817,5.84,85.634,85.571,117.3]